fUSD/lending_fUSD_20251205
["ID","MTS","AMOUNT","RATE_DAILY","PERIOD"]
[396256559,1764894584745,-261.8954441,0.00016999,2]
[396256560,1764894584773,-500.0,0.00016999,2]
[396256561,1764894584802,-500.0,0.00016999,2]
[396256562,1764894584831,-500.0,0.00016999,2]
[396256563,1764894584860,-500.0,0.00016999,2]
[396256564,1764894584889,-500.0,0.00016999,2]
[396256565,1764894584920,-500.0,0.00016999,2]
[396256566,1764894584951,-500.0,0.00016999,2]
[396256567,1764894584980,-495.41491819,0.00016999,2]
[396256568,1764894585006,-1340243.2864468,0.00017,2]
[396256569,1764894598421,330.66853602,0.00016899,2]
[396256570,1764894612788,151.0,0.00016997,2]
[396256595,1764894635290,-323.44091325,0.00017399,2]
[396256596,1764894635343,-7.22762276,0.00017399,2]
[396256597,1764894635352,-330.66853601,0.00017898,2]
[396256598,1764894635362,-151.0,0.00017997,2]
[396256599,1764894635371,-300.0,0.00017998,2]
[396256600,1764894635380,-88.91933667,0.00018,2]
[396256601,1764894635392,-515.71559737,0.00018,2]
[396256602,1764894635403,-835.19021143,0.00018,2]
[396256603,1764894635414,-567.05475244,0.00018,2]
[396256604,1764894635426,-1613.9502996,0.00018,2]
[396256605,1764894635437,-4328.06566314,0.00018,2]
[396256606,1764894635449,-302.61183806,0.00018,2]
[396256607,1764894635460,-406.33173265,0.00018,2]
[396256608,1764894635471,-780.71527075,0.00018,2]
[396256609,1764894635519,-6975.65358827,0.00018,2]
[396256611,1764894635532,-872.66531044,0.00018,2]
[396256612,1764894635543,-13597.4051901,0.00018,2]
[396256613,1764894635555,-2891.87960734,0.00018,2]
[396256614,1764894635732,-4839.78738895,0.00018,2]
[396256615,1764894635750,-998.50840001,0.00018,2]
[396256616,1764894635773,-2065.94529364,0.00018,2]
[396256617,1764894635789,-1961.85896634,0.00018,2]
[396256618,1764894635861,-5207.02539024,0.00018,2]
[396256619,1764894635880,-10720.21825438,0.00018,2]
[396256620,1764894635899,-290.05642929,0.00018,2]
[396256621,1764894635919,-1695.3400318,0.00018,2]
[396257034,1764894642850,-373.57020428,0.00018,2]
[396257048,1764894642940,-9031.79916211,0.00018,2]
[396257055,1764894642993,-708.18114371,0.00018,2]
[396257068,1764894643106,-407.00604337,0.00018,2]
[396257517,1764894648509,-310173.64428983,0.00018,2]
[396257679,1764894650015,-1256312.24429201,0.00018,2]
[396257681,1764894650027,-20628.05979156,0.00019,2]
[396257683,1764894650036,-114.99816768,0.00019014,2]
[396257685,1764894650046,-420.0,0.00019638,2]
[396257687,1764894650056,-163.12,0.00019718,2]
[396257689,1764894650066,-250.0,0.000198,2]
[396257691,1764894650075,-480.06109419,0.00019982,2]
[396257693,1764894650085,-163.12,0.00020422,2]
[396257695,1764894650094,-163.12,0.00021127,2]
[396257697,1764894650104,-587.0,0.00021427,2]
[396257699,1764894650113,-2067.2,0.00021738,2]
[396257701,1764894650123,-500.0,0.00021738,2]
[396257703,1764894650132,-500.0,0.00021738,2]
[396257705,1764894650142,-500.0,0.00021738,2]
[396257707,1764894650153,-500.0,0.00021738,2]
[396257708,1764894650163,-500.0,0.00021738,2]
[396257709,1764894650173,-334.5472959,0.00021738,2]
[396257710,1764894650182,-1000.0,0.00021738,2]
[396257711,1764894650192,-1000.0,0.00021738,2]
[396257712,1764894650201,-1000.0,0.00021738,2]
[396257713,1764894650211,-1000.0,0.00021738,2]
[396257714,1764894650220,-1000.0,0.00021738,2]
[396257715,1764894650229,-1000.0,0.00021738,2]
[396257716,1764894650238,-1000.0,0.00021738,2]
[396257717,1764894650247,-1000.0,0.00021738,2]
[396257718,1764894650259,-1000.0,0.00021738,2]
[396257719,1764894650271,-1000.0,0.00021738,2]
[396257720,1764894650280,-1000.0,0.00021738,2]
[396257721,1764894650289,-163.12,0.00021831,2]
[396257722,1764894650299,-12141.03,0.000222,7]
[396257723,1764894650307,-163.12,0.00022535,2]
[396257724,1764894650317,-4147.0,0.00022567,2]
[396257725,1764894650326,-374.5,0.00022933,2]
[396257726,1764894650334,-300.0,0.00022934,2]
[396257727,1764894650345,-500.0,0.00023199,2]
[396257728,1764894650354,-374.51,0.00023207,2]
[396257729,1764894650364,-163.12,0.00023239,2]
[396257730,1764894650373,-11620.48710432,0.00023333,7]
[396257731,1764894650382,-823.0,0.00023379,2]
[396257732,1764894650392,-163.12,0.00023943,2]
[396257733,1764894650403,-163.12,0.00024648,2]
[396257734,1764894650412,-577.77,0.00024657,2]
[396257735,1764894650421,-577.77,0.00024657,2]
[396257736,1764894650431,-577.77,0.00024657,2]
[396257737,1764894650440,-577.77,0.00024657,2]
[396257738,1764894650450,-577.77,0.00024657,2]
[396257739,1764894650459,-577.77,0.00024657,2]
[396257740,1764894650468,-246253.78225276,0.000248,3]
[396257741,1764894650480,-6280.6,0.000248,3]
[396257848,1764895044914,251.56,0.00013699,2]
[396257870,1764895838241,-208.1901852,0.00019043,2]
[396257871,1764895838251,-200.0,0.00019082,2]
[396257873,1764895838260,-91.8098141,0.00019422,2]
[396257875,1764895838273,-158.1901859,0.00019422,2]
[396257877,1764895838282,-163.0,0.000198,2]
[396257879,1764895838291,-500.0,0.00020055,2]
[396257904,1764895838551,-480.06109419,0.00020055,2]
[396257906,1764895838561,-343.99723379,0.00020205,2]
[396257908,1764895838570,-199.0,0.00020305,2]
[396257909,1764895838579,-250.0,0.00020947,2]
[396257911,1764895838588,-208.1901852,0.00021576,2]
[396257913,1764895838597,-199.0,0.00022186,2]
[396257915,1764895838607,-300.0,0.00022588,2]
[396257917,1764895838616,-236.0,0.00022942,2]
[396257919,1764895838626,-199.0,0.00023122,2]
[396257921,1764895838635,-514.0,0.00023136,2]
[396257923,1764895838644,-23.38200092,0.0002323,2]
[396257934,1764895838736,-276.61799908,0.0002323,2]
[396257936,1764895838747,-300.0,0.0002323,2]
[396257938,1764895838756,-294.98089365,0.0002323,2]
[396257943,1764895838792,-905.01910635,0.0002323,2]
[396257945,1764895838801,-8207.11,0.00023231,2]
[396257947,1764895838812,-1119.0,0.00023391,2]
[396257949,1764895838822,-199.0,0.00024068,2]
[396257951,1764895838831,-208.1901852,0.0002411,2]
[396257953,1764895838841,-163.0,0.000243,4]
[396257955,1764895838851,-343.99723377,0.0002462,2]
[396257957,1764895838860,-3357.56,0.00024822,2]
[396257959,1764895838869,-1000.0,0.00024822,2]
[396257961,1764895838879,-1000.0,0.0002497,2]
[396257963,1764895838889,-1000.0,0.0002497,2]
[396257964,1764895838903,-1000.0,0.0002497,2]
[396257966,1764895838912,-1000.0,0.0002497,2]
[396257968,1764895838922,-1000.0,0.0002497,2]
[396257970,1764895838932,-1000.0,0.0002497,2]
[396257972,1764895838942,-1000.0,0.0002497,2]
[396257974,1764895838953,-1000.0,0.0002497,2]
[396257976,1764895838964,-1000.0,0.0002497,2]
[396257978,1764895838983,-1000.0,0.0002497,2]
[396257980,1764895838993,-1000.0,0.0002497,2]
[396257982,1764895839003,-3158.0,0.00025,14]
[396257984,1764895839014,-166.66,0.00025029,30]
[396257986,1764895839023,-420.0,0.00025212,2]
[396257988,1764895839033,-420.0,0.00025212,2]
[396257990,1764895839043,-1680.0,0.00025329,2]
[396257992,1764895839053,-163.12,0.00025352,2]
[396257994,1764895839063,-944.907,0.00025452,10]
[396257996,1764895839074,-166.66,0.00025556,30]
[396257998,1764895839084,-200.0,0.00025647,2]
[396258000,1764895839094,-256.44,0.00025647,2]
[396258002,1764895839104,-199.0,0.00025949,2]
[396258004,1764895839114,-163.12,0.00026056,2]
[396258006,1764895839124,-166.66,0.00026083,30]
[396258008,1764895839133,-250.0,0.00026096,2]
[396258010,1764895839143,-150.0,0.00026355,2]
[396258012,1764895839153,-500.0,0.00026355,2]
[396258014,1764895839163,-500.0,0.00026355,2]
[396258016,1764895839173,-150.0,0.00026355,2]
[396258018,1764895839182,-500.0,0.00026355,2]
[396258021,1764895839197,-500.0,0.00026492,2]
[396258023,1764895839206,-500.0,0.00026492,2]
[396258025,1764895839216,-150.0,0.00026492,2]
[396258027,1764895839225,-500.0,0.00026492,2]
[396258029,1764895839235,-166.66,0.0002661,30]
[396258031,1764895839244,-393.08538541,0.00026629,2]
[396258033,1764895839254,-500.0,0.00026629,2]
[396258035,1764895839263,-200.0,0.00026629,2]
[396258037,1764895839273,-500.0,0.00026629,2]
[396258039,1764895839283,-208.1901852,0.00026643,2]
[396258041,1764895839292,-200.0,0.00026702,2]
[396258043,1764895839301,-163.12,0.0002676,2]
[396258045,1764895839311,-500.0,0.00026766,2]
[396258047,1764895839321,-500.0,0.00026766,2]
[396258049,1764895839330,-500.0,0.00026903,2]
[396258051,1764895839340,-500.0,0.0002704,2]
[396258053,1764895839350,-1000.0,0.00027118,2]
[396258055,1764895839361,-166.66,0.00027137,30]
[396258057,1764895839371,-205.62240407,0.00027177,2]
[396258059,1764895839383,-294.37759593,0.00027177,2]
[396258061,1764895839396,-500.0,0.00027314,2]
[396258063,1764895839407,-103.66252209,0.00027363,2]
[396258066,1764895839420,-295.0,0.00027363,2]
[396258072,1764895839478,-188.33747791,0.00027363,2]
[396258074,1764895839487,-587.0,0.00027363,2]
[396258076,1764895839497,-500.0,0.00027451,2]
[396258078,1764895839506,-154.3916393,0.00027588,2]
[396258080,1764895839516,-1611.0,0.00027616,2]
[396258082,1764895839525,-117.11616865,0.00027664,30]
[396258085,1764895839537,-49.54383135,0.00027664,30]
[396258087,1764895839546,-150.0,0.00027664,30]
[396258089,1764895839556,-50.45616865,0.00027765,2]
[396258091,1764895839568,-287.13383135,0.00027765,2]
[396258093,1764895839578,-177.58964234,0.00027801,30]
[396258095,1764895839591,-199.0,0.0002783,2]
[396258097,1764895839601,-882.65259736,0.00027869,2]
[396258539,1764895844418,-1407.98186965,0.00027869,2]
[396258541,1764895844432,-895.5214939,0.00027869,2]
[396258547,1764895844487,-255.84403909,0.00027869,2]
[396258549,1764895844499,-349.65742177,0.00027869,2]
[396258560,1764895844606,-846.33812054,0.00027869,2]
[396258572,1764895844722,-126.00445769,0.00027869,2]
[396258573,1764895844732,-502.81772897,0.00027869,2]
[396258735,1764895846979,-280.2140004,0.00027869,2]
[396258736,1764895846989,-314.57214004,0.00027869,2]
[396258738,1764895850706,-96.39613059,0.00027869,2]
[396258739,1764895850716,-909.0,0.00027869,2]
[396258740,1764895850725,-5000.0,0.00027965,2]
[396258741,1764895850735,-167.37,0.000282,14]
[396258742,1764895850745,-166.66,0.00028226,2]
[396258743,1764895850754,-16866.59073355,0.00029,2]
[396258744,1764895850767,-3133.40926645,0.00029,2]
[396258745,1764895850779,-343.99723377,0.00029035,2]
[396258746,1764895850788,-337.59,0.00029135,2]
[396258747,1764895850798,-166.66,0.00029158,2]
[396258748,1764895850808,-152.0,0.00029427,3]
[396258749,1764895850819,-415.0,0.00029697,2]
[396258750,1764895850830,-306.0,0.00029697,2]
[396258751,1764895850840,-199.0,0.00029712,2]
[396258752,1764895850850,-152.0,0.00029824,4]
[396258753,1764895850861,-15760.94199478,0.0003,2]
[396258754,1764895851017,-341.04,0.0003,2]
[396258755,1764895853551,-1159.481857,0.00022827,2]
[396258756,1764895853561,-2689.92578517,0.0003,2]
[396258757,1764895853572,-2035.36644802,0.0003,2]
[396258758,1764895853735,-380.76599372,0.0003,2]
[396258759,1764895853747,-1681.28327184,0.0003,2]
[396258760,1764895992558,500.0,0.00016999,2]
[396258761,1764895992985,500.0,0.00016999,2]
[396258762,1764895993203,500.0,0.00016999,2]
[396258763,1764895993453,500.0,0.00016999,2]
[396258764,1764895993990,500.0,0.00016999,2]
[396258765,1764896114975,500.0,0.00017,2]
[396258766,1764896352239,500.0,0.00017,2]
[396258767,1764896360624,501.08900333,0.00016973,2]
[396258768,1764896372876,500.0,0.00017,2]
[396258769,1764896410953,500.0,0.00017,2]
[396258858,1764896662093,500.0,0.00015873,2]
[396258859,1764896662192,500.0,0.00016421,2]
[396258889,1764897033271,-741.54430032,0.000225,2]
[396258890,1764897033282,-497.76627144,0.000225,2]
[396258891,1764897033294,-29.40544389,0.000225,2]
[396258892,1764897033303,-150.0,0.00022508,2]
[396258893,1764897033312,-300.0,0.00022508,2]
[396258894,1764897033321,-300.0,0.00022782,2]
[396258895,1764897033330,-167.0,0.00023,7]
[396258896,1764897033340,-171.27,0.00024658,2]
[396258897,1764897033349,-212.69024564,0.00025573,2]
[396258898,1764897033358,-174.41970094,0.00025903,2]
[396258899,1764897033367,-1200.0,0.00026002,2]
[396258900,1764897033376,-909.0,0.00026003,2]
[396258901,1764897033387,-292.0,0.00026003,2]
[396258902,1764897033396,-164.57863833,0.00026063,2]
[396258903,1764897033669,-135.42136167,0.00026063,2]
[396258904,1764897033679,-322.6107,0.00026064,2]
[396258905,1764897033689,-1900.0,0.00026064,2]
[396258906,1764897033700,-850.0,0.00026064,2]
[396258907,1764897033709,-2702.54275363,0.0002608,2]
[396258908,1764897033862,-2297.45724637,0.0002608,2]
[396258909,1764897033872,-1207.26,0.0002608,30]
[396258910,1764897033882,-165.65,0.0002608,120]
[396258911,1764897033894,-730.0,0.00026591,2]
[396258912,1764897033904,-224.0,0.00026591,2]
[396258913,1764897033914,-202.59019513,0.00026596,2]
[396258914,1764897033924,-166.66,0.00027278,30]
[396258915,1764897033934,-171.27,0.00027753,2]
[396258916,1764897033944,-166.66,0.00027853,30]
[396258917,1764897033954,-500.0,0.00028,5]
[396258918,1764897033964,-1680.0,0.00028266,2]
[396258919,1764897033973,-166.66,0.00028427,30]
[396258920,1764897033984,-150.0,0.00028439,2]
[396258921,1764897033994,-152.0,0.00028634,3]
[396258922,1764897034005,-166.66,0.00029001,30]
[396258923,1764897034016,-909.0,0.00029003,2]
[396258924,1764897034026,-152.0,0.00029071,4]
[396258925,1764897034035,-152.0,0.00029508,5]
[396258926,1764897034045,-2000.0,0.00029575,2]
[396258927,1764897034055,-166.66,0.00029575,30]
[396258928,1764897034065,-1381.0,0.00029635,2]
[396258929,1764897034074,-163.0,0.000298,30]
[396258930,1764897034085,-1570.444,0.000298,24]
[396258931,1764897034096,-157.632,0.000298,24]
[396258932,1764897034106,-246.8365585,0.00029866,2]
[396259096,1764897040062,-1194.0,0.00026003,2]
[396259098,1764897040071,-758.1734415,0.00029866,2]
[396259100,1764897040081,-152.0,0.00029945,6]
[396259102,1764897040091,-1000.0,0.00029982,2]
[396259104,1764897040100,-1000.0,0.00029982,2]
[396259106,1764897040110,-1000.0,0.00029982,2]
[396259108,1764897040119,-1000.0,0.00029982,2]
[396259110,1764897040128,-1000.0,0.00029982,2]
[396259112,1764897040137,-1000.0,0.00029982,2]
[396259114,1764897040147,-1000.0,0.00029982,2]
[396259116,1764897040157,-1000.0,0.00029982,2]
[396259118,1764897040166,-1000.0,0.00029982,2]
[396259120,1764897040175,-1000.0,0.00029982,2]
[396259122,1764897040184,-1000.0,0.00029982,2]
[396259124,1764897040193,-17110.67650647,0.0003,2]
[396259126,1764897040203,-1000.0,0.0003,2]
[396259128,1764897040212,-614.51944815,0.00030034,3]
[396259130,1764897040221,-166.66,0.00030089,2]
[396259132,1764897040230,-499.8581604,0.00030137,2]
[396259134,1764897040239,-166.66,0.0003015,30]
[396259136,1764897040248,-500.0,0.00030356,14]
[396259137,1764897040257,-500.0,0.00030356,14]
[396259140,1764897040267,-1300.0,0.00030356,14]
[396259142,1764897040276,-152.0,0.00030382,7]
[396259144,1764897040286,-165.65,0.00030426,120]
[396259146,1764897040295,-1000.0,0.00030507,2]
[396259148,1764897040304,-544.75463855,0.00030517,2]
[396259150,1764897040316,-455.24536145,0.00030517,2]
[396259152,1764897040325,-1200.0,0.00030726,2]
[396259154,1764897040335,-131813.39014028,0.00030768,2]
[396259158,1764897040704,-687.7928,0.00030768,2]
[396259159,1764897040715,-10944.79899546,0.00030768,2]
[396259242,1764897042163,-610.46081219,0.00030768,2]
[396259248,1764897042226,-459.875,0.00030768,2]
[396259249,1764897042280,-2100.0,0.00030768,2]
[396259250,1764897042291,-649.17079303,0.00030768,2]
[396259251,1764897042332,-495.68719811,0.00030768,2]
[396259252,1764897042343,-593.85849348,0.00030768,2]
[396259268,1764897045180,-250.25815524,0.00030768,2]
[396259269,1764897045193,-521.7277719,0.00030768,2]
[396259270,1764897045204,-500.0557113,0.00030768,2]
[396259271,1764897045453,-252.1373039,0.00030768,2]
[396259272,1764897045464,-13393.87,0.00030768,2]
[396259273,1764897045476,-724.94430193,0.00030768,2]
[396259274,1764897045489,-2727.89505997,0.00030768,2]
[396259289,1764897047709,-770.80903941,0.00030768,2]
[396259290,1764897047721,-1031.79579359,0.00030768,2]
[396259291,1764897047732,-1155.39425,0.00030768,2]
[396259292,1764897047743,-447.89,0.00030768,2]
[396259293,1764897047754,-21380.05720672,0.00030768,2]
[396259294,1764897047765,-62022.38474478,0.00030768,2]
[396259295,1764897047776,-89874.85640956,0.00030768,2]
[396259296,1764897047787,-6000.51410297,0.00030768,2]
[396259297,1764897047798,-296.74337219,0.00030768,2]
[396259298,1764897048176,-14377.79471675,0.00030768,2]
[396259299,1764897048187,-1801.0,0.00030768,2]
[396259300,1764897152627,164.1,0.00014953,2]
[396259306,1764897206185,514.47217118,0.00015873,2]
[396259307,1764897254822,500.0,0.00015873,2]
[396259308,1764897254888,500.0,0.00016421,2]
[396259309,1764897255976,-164.1,0.0001709,2]
[396259310,1764897303238,2000.0,0.00017,2]
[396259311,1764897303512,500.0,0.00015873,2]
[396259312,1764897303582,1000.0,0.00016421,2]
[396259313,1764897310195,500.0,0.00015873,2]
[396259314,1764897310290,1000.0,0.00016421,2]
[396259315,1764897310380,500.0,0.00016968,2]
[396259317,1764897439328,500.0,0.00015873,2]
[396259319,1764897553286,510.62968048,0.00016973,2]
[396259320,1764897553643,500.0,0.00016973,2]
[396259321,1764897554296,501.03104645,0.00016973,2]
[396259322,1764897612262,500.0,0.00016973,2]
[396259326,1764897743269,524.76,0.00022,30]
[396259327,1764897761593,238.98,0.00013699,2]
[396259328,1764897831643,250.03872823,0.00015873,2]
[396259329,1764897831771,500.35530392,0.00015873,2]
[396259333,1764897875015,500.0,0.00015873,2]
[396259334,1764897876940,500.0,0.00015873,2]
[396259336,1764897929207,500.0,0.00015873,2]
[396259337,1764897930530,502.49716887,0.00015873,2]
[396259338,1764897932228,500.0,0.00015873,2]
[396259339,1764897932369,500.0,0.00015873,2]
[396259340,1764897933282,534.71552662,0.00015873,2]
[396259341,1764897936369,500.24788264,0.00015873,2]
[396259342,1764897939202,500.0,0.00015873,2]
[396259343,1764897939610,173.42766037,0.00015873,2]
[396259344,1764897940931,314.59257655,0.00015873,2]
[396259345,1764897942107,500.0,0.00015873,2]
[396259346,1764897943181,500.0,0.00015873,2]
[396259347,1764897980860,503.78056173,0.00015873,2]
[396259348,1764897981212,500.0,0.00015873,2]
[396259354,1764898023671,500.0,0.00015873,2]
[396259364,1764898144199,559.43150203,0.00015873,2]
[396259365,1764898147501,500.0,0.00015873,2]
[396259366,1764898150098,500.0,0.00015873,2]
[396259367,1764898203448,500.0,0.00015873,2]
[396259386,1764898234628,-500.0,0.00018,2]
[396259387,1764898234637,-453.31026791,0.000188,2]
[396259388,1764898234648,-46.68973209,0.000188,2]
[396259389,1764898234657,-225.44282521,0.00019,2]
[396259390,1764898234666,-38.1774427,0.00019226,2]
[396259391,1764898234677,-125.9225573,0.00019226,2]
[396259392,1764898234686,-152.18043424,0.000198,3]
[396259393,1764898234695,-238.98,0.00020187,2]
[396259394,1764898234704,-276.68412428,0.000207,7]
[396259395,1764898234713,-164.1,0.00021362,2]
[396259396,1764898234721,-450.0,0.00022591,2]
[396259397,1764898234730,-164.1,0.00023498,2]
[396259398,1764898234739,-151.0,0.00024997,7]
[396259399,1764898234749,-1858.2073817,0.00024997,7]
[396259400,1764898234758,-1200.0,0.00024998,2]
[396259401,1764898234767,-609.33302585,0.00024999,2]
[396259402,1764898234855,-590.66697415,0.00024999,2]
[396259403,1764898234865,-277.0,0.00024999,2]
[396259404,1764898234874,-300.0,0.00024999,2]
[396259405,1764898234882,-199.29763861,0.00024999,2]
[396259406,1764898234894,-536.70236139,0.00024999,2]
[396259407,1764898234903,-867.14489466,0.00025,2]
[396259408,1764898234914,-6378.37033482,0.00025,2]
[396259409,1764898234925,-16569.5954972,0.00025,2]
[396259410,1764898234936,-6889.881243,0.00025,2]
[396259411,1764898234948,-8429.82768233,0.00025,2]
[396259412,1764898234959,-1599.22750367,0.00025,2]
[396259413,1764898235035,-8783.3,0.00025,2]
[396259414,1764898235047,-404.891496,0.00025,2]
[396259415,1764898235058,-554.1857373,0.00025,2]
[396259416,1764898235069,-905.7497,0.00025,2]
[396259417,1764898235080,-634.47129063,0.00025,2]
[396259418,1764898235093,-1848.75756851,0.00025,2]
[396259419,1764898235105,-3987.76385961,0.00025,2]
[396259435,1764898241504,-794.44669431,0.00025,2]
[396259436,1764898241835,-1749.18564804,0.00025,2]
[396259437,1764898241846,-1658.57091694,0.00025,2]
[396259438,1764898241856,-503.93718342,0.00025,2]
[396259439,1764898241867,-1298.01987285,0.00025,2]
[396259440,1764898241878,-518.98264,0.00025,2]
[396259441,1764898241913,-259.1000001,0.00025,2]
[396259442,1764898241926,-861.9833006,0.00025,2]
[396259452,1764898243587,-1624.26339403,0.00025,2]
[396259453,1764898243601,-44890.88202984,0.00025,2]
[396259454,1764898243614,-1504.57028234,0.00025,2]
[396259455,1764898243626,-762.44619198,0.00025,2]
[396259456,1764898243637,-1499.99999999,0.00025,2]
[396259457,1764898243649,-695.28994766,0.00025,2]
[396259458,1764898243660,-1847.29706136,0.00025,2]
[396259459,1764898243696,-752.0900232,0.00025,2]
[396259460,1764898243707,-1565.99279379,0.00025,2]
[396259461,1764898243791,-40000.0,0.00025,2]
[396259462,1764898243860,-4189.41707149,0.00025,2]
[396259463,1764898243871,-4007.0,0.00025,2]
[396259465,1764898243997,-489.30959975,0.00025,2]
[396259466,1764898244008,-1483.59879145,0.00025,2]
[396259467,1764898244020,-1383.29683312,0.00025,2]
[396259468,1764898244032,-730.0,0.00025,2]
[396259469,1764898244043,-1427.900885,0.00025,2]
[396259470,1764898244058,-47690.62545761,0.00025,2]
[396259471,1764898244067,-1192.60210288,0.0002518,2]
[396259472,1764898244076,-2865.98715604,0.000252,2]
[396259473,1764898244086,-150.0,0.000253,14]
[396259474,1764898244096,-250.0,0.00025372,2]
[396259475,1764898244107,-164.1,0.00025635,2]
[396259476,1764898244116,-276.68412428,0.000257,2]
[396259477,1764898244127,-2865.987156,0.00025944,2]
[396259478,1764898244138,-238.98,0.00026676,2]
[396259479,1764898244148,-2865.987156,0.00026689,2]
[396259480,1764898244158,-420.0,0.00027082,2]
[396259481,1764898244167,-1680.0,0.00027204,2]
[396259482,1764898244177,-599.60298507,0.00027362,2]
[396259483,1764898244187,-1325.0,0.00027363,2]
[396259484,1764898244198,-151.0,0.00027363,2]
[396259485,1764898244209,-277.35679052,0.00027363,2]
[396259486,1764898244220,-2865.987156,0.00027433,2]
[396259487,1764898244231,-164.1,0.00027771,2]
[396259488,1764898244241,-1192.60210288,0.00027871,2]
[396259489,1764898244252,-151.0,0.00027911,2]
[396259490,1764898244263,-2865.987156,0.00028178,2]
[396259491,1764898244273,-296.10237711,0.00028459,2]
[396259492,1764898244283,-1000.0,0.00028625,2]
[396259493,1764898244293,-200.0,0.00028629,2]
[396259494,1764898244303,-287.61899177,0.00028732,2]
[396259495,1764898244314,-2865.987156,0.00028922,2]
[396259496,1764898244324,-403.0,0.00029339,2]
[396259497,1764898244334,-1612.0,0.00029604,2]
[396259498,1764898244344,-2865.987156,0.00029667,2]
[396259499,1764898244356,-164.1,0.00029907,2]
[396259500,1764898244367,-345.76662004,0.00029982,2]
[396259501,1764898244378,-1000.0,0.00029982,2]
[396259502,1764898244388,-1000.0,0.00029982,2]
[396259503,1764898244398,-1000.0,0.00029982,2]
[396259504,1764898244409,-1000.0,0.00029982,2]
[396259505,1764898244568,-1000.0,0.00029982,2]
[396259506,1764898244629,-1000.0,0.00029982,2]
[396259507,1764898244640,-1000.0,0.00029982,2]
[396259508,1764898244651,-926.54771773,0.00029982,2]
[396259509,1764898244666,-73.45228227,0.00029982,2]
[396259510,1764898244676,-1000.0,0.00029982,2]
[396259511,1764898244686,-1000.0,0.00029982,2]
[396259512,1764898244696,-1000.0,0.00029982,2]
[396259513,1764898244707,-574.12855637,0.00029982,2]
[396259514,1764898244716,-695.39793186,0.00029982,2]
[396259515,1764898244728,-176.70330767,0.00029982,2]
[396259516,1764898244738,-500.0,0.00029984,14]
[396259517,1764898244750,-154.87,0.00029984,2]
[396259518,1764898244761,-500.0,0.0003,30]
[396259519,1764898244773,-767.0,0.0003,30]
[396259520,1764898244783,-3003.48495723,0.0003,2]
[396259521,1764898244795,-1000.0,0.0003,30]
[396259522,1764898244807,-1000.0,0.000301,30]
[396259523,1764898244823,-298.26089446,0.00030101,2]
[396259524,1764898244834,-500.0,0.00030137,2]
[396259525,1764898244844,-1000.0,0.000302,30]
[396259526,1764898244854,-1000.0,0.00030243,2]
[396259527,1764898244863,-1000.0,0.000303,30]
[396259528,1764898244872,-500.0,0.00030356,14]
[396259529,1764898244883,-500.0,0.00030356,14]
[396259530,1764898244894,-500.0,0.00030356,14]
[396259531,1764898244904,-869.90207014,0.000304,30]
[396259532,1764898244915,-130.09792986,0.000304,30]
[396259533,1764898244925,-664.71614053,0.00030411,2]
[396259535,1764898247499,-2201.27101547,0.00030411,2]
[396259536,1764898247510,-2751.98972413,0.0003047,2]
[396259537,1764898247520,-337.27249606,0.0003047,2]
[396259538,1764898247531,-1015.95344153,0.0003047,2]
[396259539,1764898247542,-9888.63630933,0.0003047,2]
[396259540,1764898247551,-161.44270123,0.00030481,2]